Cogmind - Beta 14 @@@ ROGUE MODE // 2024.08.28 @ 22:25:06 Player: Necroptosis Result: Destroyed self with Mini Grenade Launcher Performance ------------- Evolutions (0) 0 Regions Visited (0) 0 Robots Destroyed (11) 55 Value Destroyed (58) 58 Prototype IDs (0) 0 Alien Tech Used (0) 0 Bonus (0) 0 TOTAL SCORE: 113 Bonus ------- None Cogmind --------- Core Integrity 0/250 Matter 97/300 Energy 99/100 System Corruption 0% Temperature Cool (0) Movement Core (50) Location -11/Scrapyard Parts ------- > --- POWER (1) -------- (None) > --- PROPULSION (2) --- (None) > --- UTILITY (2) ------ (None) > --- WEAPON (2) ------- Small Laser Mini Grenade Launcher > --- INVENTORY (5) ---- (None) Peak State ------------ > --- POWER ------------ (None) > --- PROPULSION ------- (None) > --- UTILITY ---------- (None) > --- WEAPON ----------- Small Laser Mini Grenade Launcher > --- INVENTORY -------- (None) [Rating: 3] Favorites ----------- Power None Propulsion None Utility None Weapon Mini Grenade Launcher Energy Gun Small Laser Launcher Mini Grenade Launcher Build | -11 ------- Run | Yrd Slots Evolved . | . Power . | . Propulsion . | . Utility . | . Weapon . | . Parts Attached 2 | 2 Power . | . Engine . | . Core . | . Reactor . | . Propulsion . | . Treads . | . Leg . | . Wheel . | . Hover . | . Flight . | . Utility . | . Device . | . Storage . | . Processor . | . Hackware . | . Protection . | . Artifact . | . Weapon 2 | 2 Energy Gun 1 | 1 Energy Cannon . | . Ballistic Gun . | . Ballistic Cannon . | . Launcher 1 | 1 Special Weapon . | . Impact Weapon . | . Slashing Weapon . | . Piercing Weapon . | . Special Melee Weapon . | . Unidentified Prototypes . | . Parts Lost . | . Power . | . Propulsion . | . Utility . | . Weapon . | . Highest Loss Streak . | . To Critical Strikes . | . Average Slot Usage (%) . | . Peak Build Rating 3 | 3 Average Rating . | . On Entrance . | . Naked Turns . | . Heaviest Build 2 | 2 Greatest Support 3 | 3 Greatest Overweight (x) . | . Average Overweight (x) . | . Largest Inventory Capacity 5 | 5 Average Capacity 5 | 5 Most Carried . | . Average Carried . | . Final Capacity 5 | 5 Final Carried . | . Class Distribution -------------------- None Dominant Class ---------------- None Resources | -11 ----------- Run | Yrd Matter Collected 467 | 467 Remotely . | . Salvage Created 171 | 171 Parts 17 | 17 Haulers Intercepted . | . Recyclers Shooed . | . Parts Field Recycled . | . Retrieved Matter . | . Parts Self-Destructed . | . Prevented . | . Kills | -11 ------- Run | Yrd Combat Hostiles Destroyed 9 | 9 AOE 9 | 9 Classes Destroyed 4 | 4 Worker 3 | 3 Tunneler 7 | 7 Recycler 1 | 1 Assembled 9 | 9 Best Kill Streak 8 | 8 Combat Bots Only 8 | 8 Max Kills in Single Turn 2 | 2 Gunslinging . | . Exploded 2 | 2 Melee . | . Uniques/NPCs Destroyed . | . Combat | -11 -------- Run | Yrd Hostile Shots Fired 17 | 17 Missed 7 | 7 Damage Taken 336 | 336 Core 252 | 252 Absorbed by Shields . | . Core Remaining (%) . | . Volleys Fired 54 | 54 Largest 1 | 1 Hottest 40 | 40 Shots Fired 54 | 54 Gun 9 | 9 Cannon . | . Launcher 45 | 45 Special . | . Kinetic . | . Thermal 9 | 9 Explosive 45 | 45 Electromagnetic . | . Robot Hit Streak 4 | 4 Robot Miss Streak 2 | 2 Penetration Max . | . Secondary Targets . | . Shots Hit Robots 15 | 15 Core Hits 28 | 28 Critical Kills . | . Critical Parts Destroyed . | . Critical Strikes . | . Melee Attacks . | . Impact . | . Slashing . | . Piercing . | . Sneak Attacks . | . Combat Hostiles . | . Follow-up Attacks . | . Damage Inflicted 1230 | 1230 Guns 78 | 78 Cannons . | . Explosions 1152 | 1152 Melee . | . Ramming . | . Kinetic . | . Thermal 78 | 78 Explosive 1152 | 1152 Electromagnetic . | . Impact . | . Slashing . | . Piercing . | . Highest Corruption . | . Average Corruption . | . Corruption Purged . | . Corruption Blocked . | . Overload Shots . | . Overflow Damage 34 | 34 Projectiles . | . Explosions 34 | 34 Melee . | . Knockbacks . | . Impact . | . Kinetic . | . Secondary . | . Self-Inflicted Damage 202 | 202 Shots 7 | 7 Rammed . | . Targets Rammed . | . Kicked . | . Crushed . | . Highest Temperature 5 | 5 Average Temperature 5 | 5 Received Heat Transfer . | . Siege Activations . | . Robots Corrupted . | . Combat Hostiles . | . Parts Fried . | . Impact Corruptions . | . Robots Melted . | . Combat Hostiles . | . Parts Melted . | . Heat Transferred 175 | 175 Parts Sabotaged . | . Parts Stolen . | . Parts Stripped . | . Power Chain Reactions . | . Alert | -11 ------- Run | Yrd Peak Influence 55 | 55 Initial . | . Average 14 | 14 Maximum Alert Level . | . Low Security (%) 100 | 100 Level 1 . | . Level 2 . | . Level 3 . | . Level 4 . | . Level 5 . | . High Security . | . Max Security . | . Squads Dispatched . | . Investigation . | . Extermination . | . Reinforcement . | . Assault . | . Garrison . | . Intercept . | . Searches Triggered . | . Construction Impeded . | . Haulers Reinforced . | . Active Scanning Responses . | . Cargo Convoy Interrupts . | . Stealth | -11 --------- Run | Yrd Distress Signals . | . Communications Jammed . | . Distress Signals . | . Times Spotted 8 | 8 Peak Tracking Total 5 | 5 Tactical Retreats . | . Traps | -11 ------- Run | Yrd Traps Triggered . | . Indirectly . | . Trap Hack Attempts . | . Triggered . | . Disarmed . | . Reprogrammed . | . Reused . | . Traps Extracted . | . Installed . | . Triggered . | . Machines | -11 ---------- Run | Yrd Machines Disabled . | . Max in Single Turn . | . Machines Repaired . | . Machines Dismantled . | . Machines Sabotaged . | . Overloaded Fab Kills . | . Hacking | -11 --------- Run | Yrd Machines Accessed . | . Terminals . | . Fabricators . | . Repair Stations . | . Recycling Units . | . Scanalyzers . | . Garrison Access . | . Total Hacks . | . Successful . | . Failed . | . Catastrophic . | . Database Lockouts . | . Manual . | . Terminals . | . Fabricators . | . Repair Stations . | . Recycling Units . | . Scanalyzers . | . Garrison Access . | . Terminal Hacks . | . Fabricator Hacks . | . Repair Station Hacks . | . Recycling Unit Hacks . | . Scanalyzer . | . Garrison Access Hacks . | . Unauthorized Hacks . | . Terminals . | . Fabricators . | . Repair Stations . | . Recycling Units . | . Scanalyzers . | . Garrison Access . | . Data Cores Recovered . | . Used . | . Hacking Detections . | . Full Trace Events . | . Feedback Events . | . Feedback Blocked . | . Robot Schematics Acquired . | . Robots Built . | . Authchips . | . Time . | . Total Robot Build Rating . | . Part Schematics Acquired . | . Parts Built . | . Authchips . | . Time . | . Total Part Build Rating . | . Parts Repaired . | . Time . | . Parts Recycled . | . Recycled Matter . | . Retrieved Matter . | . Retrieved Components . | . Parts Scanalyzed . | . Part Schematics Acquired . | . Parts Damaged . | . Bothacking | -11 ------------ Run | Yrd Used RIF Installer . | . Robots Hacked . | . Non-combat . | . Combat . | . Robot Hacks Applied . | . Relay Couplers Released . | . Fabnet Peak Effective % . | . Robots Rewired . | . Allies Hacked . | . Hacks Repelled . | . Allies | -11 -------- Run | Yrd Total Allies . | . Largest Group . | . Highest-Rated Group . | . Highest-Rated Ally . | . Total Orders . | . Ally Attacks . | . Total Damage . | . Kills . | . Allies Corrupted . | . Allies Melted . | . Intel | -11 ------- Run | Yrd Robot Analysis Total . | . Derelict Logs Recovered . | . Drone Launches . | . Drone Recoveries . | . Exploration | -11 ------------- Run | Yrd Turns Passed 1960 | 1960 Spaces Moved 845 | 845 Core 845 | 845 Treads . | . Legs . | . Wheels . | . Hover . | . Flight . | . Fastest Speed 50 | 50 Average Speed 50 | 50 Slowest Speed 50 | 50 Overloaded Moves . | . Propulsion Burnouts . | . Robots Hopped . | . Cave-ins Triggered . | . Exploration Rate (%) 62 | 62 Regions Visited . Branch Regions . Pre-discovered Areas . | . Known Exits Taken . | . Unknown Exits Taken . | . Scrap Searched . | . Spaces Dug 20 | 20 Terrain Destroyed 226 | 226 Melee . | . Projectile . | . AOE 226 | 226 Terrain Rammed . | . Walls Destroyed . | . Machines Disabled . | . Actions | -11 --------- Run | Yrd Total 2329 | 2329 Wait 1428 | 1428 Move 845 | 845 Hop . | . Pick Up . | . Fast Attach 2 | 2 Attach . | . Detach . | . Swap . | . Drop . | . Fire 54 | 54 Melee . | . Ram . | . Kick . | . Crush . | . Escape Stasis . | . Rewire . | . Trap . | . Miscellaneous . | . Route ------- -11/Scrapyard (discovered 1 exit: [*Mat]) History --------- Turn | Location | Event 1195 | -11/Scrapyard | Assembled infested the area 1210 | -11/Scrapyard | Discovered new exit (range 15) 1236 | -11/Scrapyard | Core integrity fell below 50% 1242 | -11/Scrapyard | Core integrity fell below 20% 1265 | -11/Scrapyard | Destroyed 8 combat bots 1961 | -11/Scrapyard | Destroyed self with Mini Grenade Launcher Last Messages --------------- 01629_ Acquired 45 matter. 01657_ T-07 Excavator destroyed. 01664_ Acquired 10 matter. 01665_ The unstable cave ceiling collapses. 01665_ Acquired 5 matter. 01667_ Acquired 7 matter. 01668_ The unstable cave ceiling collapses. 01704_ T-07 Excavator destroyed. 01705_ The unstable cave ceiling collapses. 01708_ Acquired 16 matter. 01714_ The unstable cave ceiling collapses. 01776_ Acquired 5 matter. 01812_ K-01 Serf collects debris. 01842_ K-01 Serf destroyed. 01844_ Extracted 50 matter. 01844_ Acquired 28 matter. 01856_ T-07 Excavator is excavating. 01863_ T-07 Excavator destroyed. 01865_ Acquired 27 matter. 01898_ The unstable cave ceiling collapses. Map ----- +----------------------------------------------------+ | | | | | | | | | | | | | | | | | | | | | | | ?????????????????????????????????????????????????? | | ?????????????????????????????????????????????????? | | ?????????????????????????????????????????????????? | | ?????????????????????????????????????????????????? | | ?????????????????????????????????????????????????? | | ?????????????????????######?##???????????????????? | | ????????????????????## "## ##??????????????????? | | ????????????????????# " #??????????????????? | | ????????????????????# " #??????????????????? | | ????????????????????# #??????????????????? | | ?????????????????????# #??????????????????? | | ????????????????????## #??????????????????? | | ????????????????????# ##??????????????????? | | ?????????????????????# ######??????????????? | | ?????????########????### @ #??????????????? | | ????????## #####??## # #??????????????? | | ????????# # #???# # #??????????????? | | ????????# # ##### #??????????????? | | ????????# # #??????????????? | | ????????# # ##??????????????? | | ????????# #######???????????????? | | ?######## # # ## #######???????????????? | | ?# ## # # #???????????????? | | ?# ### # # #???????????????? | | ?# #?### # # #???????????????? | | ?# #???# # #???????????????? | | ?? #???### ## # #???????????????? | | ??? ??????# # ###### #######???????????????? | | ##### ########## # # #?????????????????????? | | #?????????????????????? | | #?????????????????????? | | ##### ###### #### ### #?????????????????????? | | ?# ! # ## ## ##?????????????????????? | | # # # # #?????????????????????? | | # # ###### ##?????????????????????? | | # ## #????## ##########??????###????? | | # ################# # ######## ###### | | # #?????# # | | # #?????# # ############## | +----------------------------------------------------+ Best States ------------- Heat Dissipation 25 Energy Generation 5 Energy Capacity 100 Matter Stores 205 Matter Capacity 300 Sight Range 16 Terrain Scan Density 10 Evasion (%) 50 Item Schematics ----------------- None Robot Schematics ------------------ None Fabricated ------------ Nothing Alien Tech Used ----------------- None Achievements -------------- Curiosity Killed The Cat Challenges ------------ None Game ------ Seed TransmissionSalvageSplitter Manual? 0 Play Time 00:10:18 Cumulative 22.1 hours Start 2024.08.28 @ 22:19:51 End 2024.08.28 @ 22:25:06 Sessions 0 Manual Loads 0 Difficulty Rogue Special Mode None Game No. 33 Rogue 33 Adventurer 0 Explorer 0 Win Type - Total 0 Types 0/0/0/0/0/0/0/0/0 Lore% 17 Gallery% 33 Achievement% 34 Wizard Run 0 Options --------- Layout 1 ASCII 0 Keyboard 0 Movement Mouse Keybinds 0 Fullscreen 1 Font 20/SmallcapsGlow Map View 54x42 Zoom Use 0% Tactical HUD 1 Map Filters NONE Filters NONE Steam 1 RUN: def81ff0-faad-48ae-94c2-c804f776cd9c